fUSD/lending_fUSD_20240122
["ID","MTS","AMOUNT","RATE_DAILY","PERIOD"]
[312526675,1705942317781,-500.0,0.00056712,120]
[312526676,1705942317791,-500.0,0.00056712,120]
[312526677,1705942317801,-546.07301367,0.00056712,120]
[312526678,1705942317811,-503.21,0.00056712,120]
[312526679,1705942317822,-500.0,0.00056712,120]
[312526680,1705942317831,-500.0,0.00056712,120]
[312526681,1705942317841,-500.0,0.00056712,120]
[312526682,1705942317851,-548.09,0.00056712,120]
[312526683,1705942317861,-500.0,0.00056712,120]
[312526684,1705942317871,-500.0,0.00056712,120]
[312526685,1705942317881,-500.0,0.00056712,120]
[312526686,1705942317891,-320.85472442,0.00056712,120]
[312526687,1705942317902,-500.0,0.00056712,120]
[312526688,1705942317913,-500.0,0.00056712,120]
[312526689,1705942317923,-635.0,0.00056712,120]
[312526690,1705942317932,-500.0,0.00056712,120]
[312526691,1705942317941,-826.62,0.00056712,120]
[312526692,1705942317950,-500.0,0.00056712,120]
[312526693,1705942317961,-593.99,0.00056712,120]
[312526694,1705942317971,-500.0,0.00056712,120]
[312526695,1705942317981,-500.0,0.00056712,120]
[312526696,1705942317992,-500.0,0.00056712,120]
[312526697,1705942318003,-503.77,0.00056712,120]
[312526698,1705942318013,-500.0,0.00056712,120]
[312526699,1705942318024,-584.08,0.00056712,120]
[312526700,1705942318034,-500.0,0.00056712,120]
[312526701,1705942318044,-1733.58,0.00056712,120]
[312526702,1705942318055,-500.0,0.00056712,120]
[312526703,1705942318064,-500.0,0.00056712,120]
[312526704,1705942318075,-500.0,0.00056712,120]
[312526705,1705942318084,-500.0,0.00056712,120]
[312526706,1705942318094,-538.86,0.00056712,120]
[312526707,1705942318104,-500.0,0.00056712,120]
[312526708,1705942318114,-500.0,0.00056712,120]
[312526709,1705942318123,-517.5,0.00056712,120]
[312526710,1705942318133,-500.0,0.00056712,120]
[312526711,1705942318142,-873.69,0.00056712,120]
[312526712,1705942318155,-500.0,0.00056712,120]
[312526713,1705942318166,-557.04,0.00056712,120]
[312526714,1705942318176,-500.0,0.00056712,120]
[312526715,1705942318186,-500.0,0.00056712,120]
[312526716,1705942318195,-500.0,0.00056712,120]
[312526717,1705942318204,-500.0,0.00056712,120]
[312526718,1705942318215,-500.0,0.00056712,120]
[312526719,1705942318224,-500.0,0.00056712,120]
[312526720,1705942318234,-727.32,0.00056712,120]
[312526721,1705942318244,-500.0,0.00056712,120]
[312526722,1705942318254,-500.0,0.00056712,120]
[312526723,1705942318263,-500.0,0.00056712,120]
[312526724,1705942318273,-791.21,0.00056712,120]
[312526725,1705942318283,-500.0,0.00056712,120]
[312526726,1705942318292,-903.36,0.00056712,120]
[312526727,1705942318302,-1283.28,0.00056712,120]
[312526728,1705942318312,-500.0,0.00056712,120]
[312526729,1705942318322,-594.65,0.00056712,120]
[312526730,1705942318332,-617.64,0.00056712,120]
[312526731,1705942318341,-720.46,0.00056712,120]
[312526732,1705942318351,-986.04,0.00056712,120]
[312526733,1705942318361,-723.96,0.00056712,120]
[312526734,1705942318371,-985.43,0.00056712,120]
[312526735,1705942318381,-519.85,0.00056712,120]
[312526736,1705942318391,-500.0,0.00056712,120]
[312526737,1705942318403,-500.0,0.00056712,120]
[312526738,1705942318412,-1096.6,0.00056712,120]
[312526739,1705942318422,-500.0,0.00056712,120]
[312526740,1705942318431,-1001.01,0.00056712,120]
[312526741,1705942318441,-500.0,0.00056712,120]
[312526742,1705942318450,-500.0,0.00056712,120]
[312526743,1705942318460,-230.34302881,0.00056712,120]
[312526744,1705942318470,-500.0,0.00056712,120]
[312526745,1705942318481,-500.0,0.00056712,2]
[312526746,1705942318491,-539.44637338,0.00056712,120]
[312526747,1705942318501,-748.21,0.00056712,120]
[312526748,1705942318512,-601.52,0.00056712,120]
[312526749,1705942318523,-757.21,0.00056712,120]
[312526750,1705942318532,-500.0,0.00056712,120]
[312526751,1705942318543,-500.0,0.00056712,2]
[312526752,1705942318555,-578.69,0.00056712,120]
[312526753,1705942318565,-496.3292874,0.00056712,120]
[312526754,1705942318574,-690.74,0.00056712,120]
[312526755,1705942318584,-500.0,0.00056712,120]
[312526756,1705942318594,-655.68,0.00056712,120]
[312526757,1705942318605,-815.64,0.00056712,120]
[312526758,1705942318616,-500.0,0.00056712,120]
[312526759,1705942318626,-535.82,0.00056712,120]
[312526760,1705942318636,-987.66,0.00056712,120]
[312526761,1705942318646,-500.0,0.00056712,120]
[312526762,1705942318658,-500.0,0.00056712,120]
[312526763,1705942318668,-1207.6,0.00056712,120]
[312526764,1705942318678,-523.7388588,0.00056712,120]
[312526765,1705942318687,-799.27,0.00056712,120]
[312526766,1705942318698,-509.48,0.00056712,120]
[312526767,1705942318709,-956.9,0.00056712,120]
[312526768,1705942318718,-1236.74,0.00056712,120]
[312526769,1705942318728,-794.46,0.00056712,120]
[312526770,1705942318739,-500.0,0.00056712,120]
[312526771,1705942318750,-676.21,0.00056712,120]
[312526772,1705942318760,-500.0,0.00056712,120]
[312526773,1705942318769,-784.83,0.00056712,120]
[312526774,1705942319041,-1206.35,0.00056712,120]
[312526775,1705942319051,-500.0,0.00056712,7]
[312526776,1705942319062,-940.83,0.00056712,120]
[312526777,1705942319072,-1325.76,0.00056712,120]
[312526778,1705942319081,-766.88,0.00056712,120]
[312526779,1705942319091,-500.0,0.00056712,120]
[312526780,1705942319101,-882.54,0.00056712,2]
[312526781,1705942319111,-1098.14,0.00056712,120]
[312526782,1705942319121,-1272.77,0.00056712,120]
[312526783,1705942319131,-855.01,0.00056712,120]
[312526784,1705942319141,-1433.57,0.00056712,120]
[312526785,1705942319153,-500.0,0.00056712,120]
[312526786,1705942319163,-500.0,0.00056712,120]
[312526787,1705942319173,-1004.38,0.00056712,120]
[312526788,1705942319183,-613.63,0.00056712,120]
[312526789,1705942319192,-500.0,0.00056712,120]
[312526790,1705942319201,-511.59,0.00056712,120]
[312526791,1705942319210,-851.13,0.00056712,120]
[312526792,1705942319219,-933.89,0.00056712,120]
[312526793,1705942319228,-711.76,0.00056712,120]
[312526794,1705942319238,-572.52,0.00056712,120]
[312526795,1705942319248,-500.0,0.00056712,120]
[312526796,1705942319257,-773.03,0.00056712,120]
[312526797,1705942319267,-762.64,0.00056712,120]
[312526798,1705942319276,-1058.65,0.00056712,120]
[312526799,1705942319286,-509.59,0.00056712,120]
[312526800,1705942319295,-500.0,0.00056712,120]
[312526801,1705942319304,-1002.76,0.00056712,120]
[312526802,1705942319314,-665.88,0.00056712,120]
[312526803,1705942319324,-500.0,0.00056712,120]
[312526804,1705942319334,-827.04,0.00056712,120]
[312526805,1705942319344,-904.02,0.00056712,120]
[312526806,1705942319353,-500.0,0.00056712,120]
[312526807,1705942319363,-704.08,0.00056712,120]
[312526808,1705942319373,-787.53,0.00056712,120]
[312526809,1705942319382,-1047.73,0.00056712,120]
[312526810,1705942319392,-872.35,0.00056712,120]
[312526811,1705942319402,-500.0,0.00056712,120]
[312526812,1705942319413,-500.0,0.00056712,120]
[312526813,1705942319423,-973.07,0.00056712,120]
[312526814,1705942319431,-1055.58,0.00056712,120]
[312526815,1705942319441,-500.0,0.00056712,120]
[312526816,1705942319451,-592.41,0.00056712,120]
[312526817,1705942319460,-500.0,0.00056712,120]
[312526818,1705942319470,-500.0,0.00056712,120]
[312526819,1705942319480,-500.0,0.00056712,120]
[312526820,1705942319491,-1284.43,0.00056712,120]
[312526821,1705942319500,-500.0,0.00056712,120]
[312526822,1705942319513,-1139.91,0.00056712,120]
[312526823,1705942319524,-500.0,0.00056712,120]
[312526824,1705942319534,-562.17,0.00056712,120]
[312526825,1705942319544,-539.03,0.00056712,120]
[312526826,1705942319554,-500.0,0.00056712,120]
[312526827,1705942319564,-1374.87,0.00056712,120]
[312526828,1705942319575,-750.36,0.00056712,120]
[312526829,1705942319584,-711.43,0.00056712,120]
[312526830,1705942319595,-579.03,0.00056712,120]
[312526831,1705942319605,-500.0,0.00056712,120]
[312526832,1705942319615,-1076.02,0.00056712,120]
[312526833,1705942319625,-500.0,0.00056712,120]
[312526834,1705942319635,-1080.86,0.00056712,120]
[312526835,1705942319644,-559.5,0.00056712,120]
[312526836,1705942319656,-500.0,0.00056712,120]
[312526837,1705942319666,-1198.92,0.00056712,120]
[312526838,1705942319675,-546.17,0.00056712,120]
[312526839,1705942319686,-1032.79,0.00056712,120]
[312526840,1705942319695,-912.89,0.00056712,120]
[312526841,1705942319704,-1291.04,0.00056712,120]
[312526842,1705942319714,-719.62,0.00056712,120]
[312526843,1705942319724,-1228.18,0.00056712,120]
[312526844,1705942319734,-500.0,0.00056712,120]
[312526845,1705942319743,-500.0,0.00056712,120]
[312526846,1705942319753,-1064.71,0.00056712,120]
[312526847,1705942319762,-933.5,0.00056712,120]
[312526848,1705942319771,-500.0,0.00056712,120]
[312526849,1705942319781,-500.0,0.00056712,120]
[312526850,1705942319791,-512.46,0.00056712,120]
[312526851,1705942319800,-1092.85,0.00056712,120]
[312526852,1705942319809,-1122.93,0.00056712,120]
[312526853,1705942319819,-834.87,0.00056712,120]
[312526854,1705942319829,-1098.97,0.00056712,120]
[312526855,1705942319839,-500.0,0.00056712,120]
[312526856,1705942319848,-468.12912236,0.00056712,120]
[312526857,1705942319858,-500.0,0.00056712,120]
[312526858,1705942319868,-1124.27,0.00056712,120]
[312526859,1705942319877,-500.0,0.00056712,120]
[312526860,1705942319886,-548.35,0.00056712,120]
[312526861,1705942319896,-676.24,0.00056712,120]
[312526862,1705942319907,-500.0,0.00056712,120]
[312526863,1705942319917,-1234.09,0.00056712,120]
[312526864,1705942319927,-1183.29,0.00056712,120]
[312526865,1705942319936,-500.0,0.00056712,120]
[312526866,1705942319945,-500.0,0.00056712,120]
[312526867,1705942319955,-500.0,0.00056712,120]
[312526868,1705942319964,-942.51,0.00056712,120]
[312526869,1705942319974,-500.0,0.00056712,120]
[312526870,1705942319984,-539.8,0.00056712,120]
[312526871,1705942319994,-1200.35,0.00056712,120]
[312526872,1705942320004,-995.47,0.00056712,120]
[312526873,1705942320014,-1034.97,0.00056712,120]
[312526874,1705942320025,-500.0,0.00056712,120]
[312526875,1705942320034,-500.0,0.00056712,120]
[312526876,1705942320044,-874.88,0.00056712,120]
[312526877,1705942320053,-507.23,0.00056712,120]
[312526878,1705942320063,-562.05,0.00056712,120]
[312526879,1705942320072,-514.2,0.00056712,120]
[312526880,1705942320081,-1546.51,0.00056712,2]
[312526881,1705942320090,-500.0,0.00056712,120]
[312526882,1705942320100,-1038.58,0.00056712,120]
[312526883,1705942320110,-1166.09,0.00056712,120]
[312526884,1705942320118,-552.78,0.00056712,120]
[312526885,1705942320127,-443.89290393,0.00056712,120]
[312526886,1705942320137,-916.75,0.00056712,120]
[312526887,1705942320146,-500.0,0.00056712,120]
[312526888,1705942320157,-825.25,0.00056712,120]
[312526889,1705942320166,-731.13,0.00056712,120]
[312526890,1705942320175,-703.42,0.00056712,120]
[312526891,1705942320183,-597.16,0.00056712,120]
[312526892,1705942320192,-692.04,0.00056712,120]
[312526893,1705942320202,-609.93,0.00056712,120]
[312526894,1705942320212,-500.0,0.00056712,120]
[312526895,1705942320221,-668.81,0.00056712,120]
[312526896,1705942320231,-604.43,0.00056712,120]
[312526897,1705942320241,-435.51,0.00056712,120]
[312526898,1705942320250,-820.72,0.00056712,120]
[312526899,1705942320259,-500.0,0.00056712,2]
[312526900,1705942320268,-510.66,0.00056712,120]
[312526901,1705942320278,-1104.92,0.00056712,120]
[312526902,1705942320287,-500.0,0.00056712,120]
[312526903,1705942320297,-500.0,0.00056712,120]
[312526904,1705942320308,-150.0,0.00056712,14]
[312526905,1705942320318,-611.57,0.00056712,120]
[312526906,1705942320328,-500.0,0.00056712,120]
[312526907,1705942320337,-705.3,0.00056712,120]
[312526908,1705942320347,-782.46,0.00056712,120]
[312526909,1705942320356,-1193.75,0.00056712,120]
[312526910,1705942320366,-558.12625995,0.00056712,120]
[312526911,1705942320376,-500.0,0.00056712,120]
[312526912,1705942320385,-841.24,0.00056712,120]
[312526913,1705942320395,-774.06,0.00056712,120]
[312526914,1705942320405,-500.0,0.00056712,120]
[312526915,1705942320414,-706.09,0.00056712,120]
[312526916,1705942320424,-1049.13,0.00056712,120]
[312526917,1705942320434,-500.0,0.00056712,120]
[312526918,1705942320443,-722.39,0.00056712,120]
[312526919,1705942320453,-500.0,0.00056712,120]
[312526920,1705942320463,-500.0,0.00056712,120]
[312526921,1705942320473,-1098.78,0.00056712,120]
[312526922,1705942320486,-1040.43,0.00056712,120]
[312526923,1705942320497,-676.51,0.00056712,120]
[312526924,1705942320507,-800.29,0.00056712,120]
[312526925,1705942320519,-977.04,0.00056712,120]
[312526926,1705942320529,-622.73,0.00056712,120]
[312526927,1705942320539,-812.24,0.00056712,120]
[312526928,1705942320548,-940.44,0.00056712,120]
[312526929,1705942320558,-4003.53,0.00056712,120]
[312526930,1705942320568,-762.89,0.00056712,120]
[312526931,1705942320578,-543.32,0.00056712,120]
[312526932,1705942320588,-683.59,0.00056712,120]
[312526933,1705942320598,-735.35,0.00056712,120]
[312526934,1705942320608,-528.66844829,0.00056712,120]
[312526935,1705942320618,-500.0,0.00056712,120]
[312526936,1705942320627,-7945.75,0.00056712,120]
[312526937,1705942320637,-752.98,0.00056712,120]
[312526938,1705942320646,-1119.94,0.00056712,120]
[312526939,1705942320659,-658.72,0.00056712,120]
[312526940,1705942320668,-590.12,0.00056712,120]
[312526941,1705942320678,-500.0,0.00056712,120]
[312526942,1705942320688,-500.0,0.00056712,120]
[312526943,1705942320698,-1197.36,0.00056712,120]
[312526944,1705942320707,-873.76,0.00056712,120]
[312526945,1705942320716,-536.78,0.00056712,120]
[312526946,1705942320726,-500.0,0.00056712,120]
[312526947,1705942320736,-1072.31,0.00056712,120]
[312526948,1705942320746,-500.0,0.00056712,120]
[312526949,1705942320755,-916.28,0.00056712,120]
[312526950,1705942320765,-500.0,0.00056712,120]
[312526951,1705942320774,-894.82,0.00056712,120]
[312526952,1705942320784,-500.0,0.00056712,120]
[312526953,1705942320794,-563.54,0.00056712,120]
[312526954,1705942320803,-984.92,0.00056712,120]
[312526955,1705942320812,-500.0,0.00056712,120]
[312526956,1705942320821,-2024.59,0.00056712,7]
[312526957,1705942320831,-500.0,0.00056712,120]
[312526958,1705942320840,-531.57818497,0.00056712,120]
[312526959,1705942320849,-873.84,0.00056712,120]
[312526960,1705942320858,-264.42682508,0.00056712,120]
[312526961,1705942320867,-1503.79,0.00056712,120]
[312526962,1705942320877,-500.0,0.00056712,120]
[312526963,1705942320886,-500.0,0.00056712,120]
[312526964,1705942320896,-646.15,0.00056712,120]
[312526965,1705942320910,-781.35,0.00056712,120]
[312526966,1705942320919,-564.76,0.00056712,120]
[312526967,1705942320928,-1064.36,0.00056712,120]
[312526968,1705942320938,-519.13,0.00056712,120]
[312526969,1705942320947,-1095.74,0.00056712,120]
[312526970,1705942320956,-1291.13,0.00056712,120]
[312526971,1705942320965,-188.05381474,0.00056712,120]
[312526972,1705942320974,-712.79,0.00056712,120]
[312526973,1705942320984,-500.0,0.00056712,120]
[312526974,1705942320993,-736.14,0.00056712,120]
[312526975,1705942321002,-1311.07,0.00056712,120]
[312526976,1705942321012,-500.0,0.00056712,120]
[312526977,1705942321021,-548.91119556,0.00056712,120]
[312526978,1705942321030,-500.0,0.00056712,120]
[312526979,1705942321040,-500.0,0.00056712,120]
[312526980,1705942321049,-500.0,0.00056712,120]
[312526981,1705942321057,-997.27,0.00056712,120]
[312526982,1705942321066,-1000.0,0.00056712,7]
[312526983,1705942321076,-1180.26,0.00056712,30]
[312526984,1705942321085,-879.87,0.00056712,120]
[312526985,1705942321094,-500.0,0.00056712,120]
[312526986,1705942321103,-500.0,0.00056712,120]
[312526987,1705942321112,-500.0,0.00056712,120]
[312526988,1705942321121,-500.0,0.00056712,120]
[312526989,1705942321130,-1101.52,0.00056712,120]
[312526990,1705942321139,-1000.0,0.00056712,120]
[312526991,1705942321148,-500.0,0.00056712,120]
[312526992,1705942321159,-596.97,0.00056712,120]
[312526993,1705942321169,-500.0,0.00056712,120]
[312526994,1705942321178,-677.87,0.00056712,120]
[312526995,1705942321187,-500.0,0.00056712,30]
[312526996,1705942321196,-758.09,0.00056712,120]
[312526997,1705942321205,-500.0,0.00056712,120]
[312526998,1705942321215,-678.57,0.00056712,120]
[312526999,1705942321224,-500.0,0.00056712,7]
[312527000,1705942321234,-500.0,0.00056712,120]
[312527001,1705942321243,-764.95,0.00056712,120]
[312527002,1705942321252,-535.75,0.00056712,120]
[312527003,1705942321261,-1153.09,0.00056712,120]
[312527004,1705942321271,-768.51,0.00056712,120]
[312527005,1705942321280,-1045.19,0.00056712,120]
[312527006,1705942321290,-500.0,0.00056712,120]
[312527007,1705942321299,-876.25,0.00056712,120]
[312527008,1705942321307,-552.31,0.00056712,120]
[312527009,1705942321317,-697.88,0.00056712,120]
[312527010,1705942321327,-500.0,0.00056712,120]
[312527011,1705942321336,-619.89,0.00056712,120]
[312527012,1705942321345,-746.34,0.00056712,120]
[312527013,1705942321355,-503.91,0.00056712,120]
[312527014,1705942321364,-770.55,0.00056712,120]
[312527015,1705942321373,-515.99,0.00056712,120]
[312527016,1705942321382,-533.69,0.00056712,120]
[312527017,1705942321390,-500.0,0.00056712,120]
[312527018,1705942321474,-1181.85,0.00056712,120]
[312527019,1705942321485,-500.0,0.00056712,120]
[312527020,1705942321495,-1727.31,0.00056712,120]
[312527021,1705942321504,-500.0,0.00056712,120]
[312527022,1705942321516,-500.0,0.00056712,120]
[312527023,1705942321526,-500.0,0.00056712,120]
[312527024,1705942321535,-953.83,0.00056712,120]
[312527025,1705942321545,-609.57,0.00056712,120]
[312527026,1705942321554,-500.0,0.00056712,120]
[312527027,1705942321564,-759.29,0.00056712,120]
[312527028,1705942321574,-517.57,0.00056712,120]
[312527029,1705942321583,-500.0,0.00056712,120]
[312527030,1705942321593,-474.95067753,0.00056712,120]
[312527031,1705942321603,-1765.42,0.00056712,120]
[312527032,1705942321613,-945.78,0.00056712,120]
[312527033,1705942321622,-563.49,0.00056712,120]
[312527034,1705942321632,-2780.15,0.00056712,120]
[312527035,1705942321641,-1143.05,0.00056712,120]
[312527036,1705942321650,-739.81,0.00056712,120]
[312527037,1705942321660,-248.82114164,0.00056712,120]
[312527038,1705942321669,-630.92,0.00056712,120]
[312527039,1705942321680,-500.0,0.00056712,120]
[312527040,1705942321690,-6946.56,0.00056712,120]
[312527041,1705942321699,-779.09,0.00056712,120]
[312527042,1705942321708,-1112.59,0.00056712,120]
[312527043,1705942321718,-729.29,0.00056712,120]
[312527044,1705942321727,-3649.41,0.00056712,120]
[312527045,1705942321736,-500.0,0.00056712,120]
[312527046,1705942321746,-500.0,0.00056712,120]
[312527047,1705942321755,-500.0,0.00056712,120]
[312527048,1705942321765,-1830.13,0.00056712,120]
[312527049,1705942321774,-500.0,0.00056712,120]
[312527050,1705942321783,-8171.7,0.00056712,120]
[312527051,1705942321792,-598.39,0.00056712,120]
[312527052,1705942321801,-500.0,0.00056712,120]
[312527053,1705942321810,-885.03,0.00056712,120]
[312527054,1705942321820,-552.57,0.00056712,120]
[312527055,1705942321829,-500.0,0.00056712,120]
[312527056,1705942321838,-681.33,0.00056712,120]
[312527057,1705942321847,-2620.03,0.00056712,120]
[312527058,1705942321856,-385.6,0.00056712,120]
[312527059,1705942321866,-500.0,0.00056712,120]
[312527060,1705942321875,-674.46,0.00056712,120]
[312527061,1705942321885,-580.85,0.00056712,120]
[312527062,1705942321894,-722.83,0.00056712,120]
[312527063,1705942321905,-1767.29,0.00056712,120]
[312527064,1705942321915,-500.0,0.00056712,120]
[312527065,1705942321924,-500.0,0.00056712,120]
[312527066,1705942321933,-717.86,0.00056712,120]
[312527067,1705942321942,-500.0,0.00056712,120]
[312527068,1705942321951,-1143.05,0.00056712,120]
[312527069,1705942321961,-500.0,0.00056712,120]
[312527070,1705942321970,-1133.33,0.00056712,120]
[312527071,1705942321979,-500.0,0.00056712,120]
[312527072,1705942321989,-540.86,0.00056712,120]
[312527073,1705942321998,-500.0,0.00056712,120]
[312527074,1705942322007,-500.0,0.00056712,120]
[312527075,1705942322016,-5682.89,0.00056712,120]
[312527076,1705942322026,-917.6,0.00056712,120]
[312527077,1705942322036,-610.88,0.00056712,120]
[312527078,1705942322046,-774.42,0.00056712,120]
[312527079,1705942322055,-1451.88,0.00056712,120]
[312527080,1705942322064,-638.56,0.00056712,120]
[312527081,1705942322073,-2543.46,0.00056712,120]
[312527082,1705942322082,-2607.73,0.00056712,120]
[312527083,1705942322091,-745.28,0.00056712,120]
[312527084,1705942322101,-500.0,0.00056712,120]
[312527085,1705942322110,-820.5,0.00056712,120]
[312527086,1705942322120,-1200.74,0.00056712,120]
[312527087,1705942322130,-1676.05,0.00056712,120]
[312527088,1705942322139,-3921.91,0.00056712,120]
[312527089,1705942322148,-1841.71,0.00056712,120]
[312527090,1705942322159,-1638.92,0.00056712,120]
[312527091,1705942322168,-500.0,0.00056712,120]
[312527092,1705942322178,-753.79,0.00056712,120]
[312527093,1705942322187,-983.65,0.00056712,120]
[312527094,1705942322197,-694.12,0.00056712,120]
[312527095,1705942322207,-760.03,0.00056712,120]
[312527096,1705942322216,-1023.91,0.00056712,120]
[312527097,1705942322226,-500.0,0.00056712,120]
[312527098,1705942322235,-500.0,0.00056712,120]
[312527099,1705942322245,-1153.82,0.00056712,120]
[312527100,1705942322254,-895.96,0.00056712,120]
[312527101,1705942322264,-500.0,0.00056712,120]
[312527102,1705942322273,-500.0,0.00056712,120]
[312527103,1705942322282,-630.13,0.00056712,120]
[312527104,1705942322292,-500.0,0.00056712,120]
[312527105,1705942322301,-906.48,0.00056712,120]
[312527106,1705942322310,-500.0,0.00056712,120]
[312527107,1705942322320,-1028.29,0.00056712,120]
[312527108,1705942322329,-500.0,0.00056712,120]
[312527109,1705942322338,-649.02,0.00056712,120]
[312527110,1705942322348,-773.13,0.00056712,120]
[312527111,1705942322357,-500.0,0.00056712,120]
[312527112,1705942322366,-768.01,0.00056712,120]
[312527113,1705942322375,-1504.11,0.00056712,120]
[312527114,1705942322384,-778.2,0.00056712,120]
[312527115,1705942322393,-1829.78,0.00056712,120]
[312527116,1705942322404,-500.0,0.00056712,120]
[312527117,1705942322413,-500.0,0.00056712,120]
[312527118,1705942322422,-543.66,0.00056712,120]
[312527119,1705942322432,-950.19,0.00056712,120]
[312527120,1705942322442,-500.0,0.00056712,120]
[312527121,1705942322451,-505.05,0.00056712,120]
[312527122,1705942322461,-1074.68,0.00056712,120]
[312527123,1705942322470,-500.0,0.00056712,120]
[312527124,1705942322481,-1213.81,0.00056712,120]
[312527125,1705942322491,-823.2,0.00056712,120]
[312527126,1705942322500,-500.0,0.00056712,120]
[312527127,1705942322512,-1115.17,0.00056712,120]
[312527128,1705942322526,-500.0,0.00056712,120]
[312527129,1705942322535,-856.62,0.00056712,120]
[312527130,1705942322544,-682.86,0.00056712,120]
[312527131,1705942322554,-500.0,0.00056712,120]
[312527132,1705942322564,-594.97,0.00056712,120]
[312527133,1705942322573,-1646.87,0.00056712,120]
[312527134,1705942322582,-500.0,0.00056712,120]
[312527135,1705942322593,-822.11,0.00056712,120]
[312527136,1705942322602,-828.1,0.00056712,120]
[312527137,1705942322612,-580.05,0.00056712,120]
[312527138,1705942322622,-500.0,0.00056712,120]
[312527139,1705942322631,-2595.41,0.00056712,120]
[312527140,1705942322641,-500.0,0.00056712,120]
[312527141,1705942322651,-630.62,0.00056712,120]
[312527142,1705942322662,-930.18,0.00056712,120]
[312527143,1705942322672,-1073.28,0.00056712,120]
[312527144,1705942322683,-742.05,0.00056712,120]
[312527145,1705942322693,-678.49,0.00056712,120]
[312527146,1705942322702,-500.0,0.00056712,120]
[312527147,1705942322712,-1590.69,0.00056712,120]
[312527148,1705942322722,-829.6,0.00056712,120]
[312527149,1705942322731,-617.27,0.00056712,120]
[312527150,1705942322741,-631.43262986,0.00056712,120]
[312527151,1705942322750,-815.78,0.00056712,120]
[312527152,1705942322760,-1543.05,0.00056712,120]
[312527153,1705942322775,-500.0,0.00056712,120]
[312527154,1705942322784,-1475.16,0.00056712,120]
[312527155,1705942322794,-500.0,0.00056712,120]
[312527156,1705942322804,-714.16,0.00056712,120]
[312527157,1705942322813,-1006.24,0.00056712,120]
[312527158,1705942322823,-758.37,0.00056712,120]
[312527159,1705942322832,-1423.08,0.00056712,120]
[312527160,1705942322841,-500.0,0.00056712,120]
[312527161,1705942322851,-765.85,0.00056712,120]
[312527162,1705942322861,-500.0,0.00056712,120]
[312527163,1705942322872,-500.0,0.00056712,120]
[312527164,1705942322881,-695.94,0.00056712,120]
[312527165,1705942322896,-810.81,0.00056712,120]
[312527166,1705942322907,-569.61,0.00056712,120]
[312527167,1705942322917,-500.0,0.00056712,120]
[312527168,1705942322930,-500.0,0.00056712,120]
[312527169,1705942322939,-2137.13,0.00056712,120]
[312527170,1705942322949,-500.0,0.00056712,120]
[312527171,1705942322958,-1195.99,0.00056712,120]
[312527172,1705942322968,-735.82,0.00056712,120]
[312527173,1705942322978,-1168.02,0.00056712,120]
[312527174,1705942322987,-675.18,0.00056712,120]